bitfinex-derivatives/quotes_BTCF0:USTF0_20250213
["timestamp","ask_amount","ask_price","bid_price","bid_amount"]
[1739451242616,0.2083706,95971.0,95970.0,0.2083659]
[1739451242919,0.208385,95963.0,95962.0,0.2083848]
[1739451243120,0.2,95963.0,95962.0,0.2083848]
[1739451244317,0.2,95963.0,95962.0,0.2143848]
[1739451246226,0.2,95963.0,95962.0,0.2193848]
[1739451248930,0.4083828,95963.0,95962.0,0.2193848]
[1739451251828,0.2,95963.0,95962.0,0.2193848]
[1739451252631,0.23,95963.0,95962.0,0.219385]
[1739451254126,0.00120001,95978.0,95962.0,0.011]
[1739451254327,0.00120001,95978.0,95977.0,0.2083524]
[1739451254328,0.19,95978.0,95977.0,0.2083524]
[1739451254526,0.19,95978.0,95977.0,0.5691524]
[1739451255333,0.19,95978.0,95977.0,0.57960063]
[1739451256125,0.15613323,95979.0,95978.0,0.2083503]
[1739451256322,0.15613323,95979.0,95978.0,0.2798503]
[1739451256526,0.38613323,95979.0,95978.0,0.2798503]
[1739451257939,0.23,95979.0,95978.0,0.2798503]
[1739451258327,0.23,95979.0,95978.0,0.2838503]
[1739451258946,0.23,95979.0,95978.0,0.2858503]
[1739451259838,0.00015626,95989.0,95978.0,0.0775]
[1739451260137,0.22015626,95989.0,95988.0,0.5691286]
[1739451262634,0.22115626,95989.0,95988.0,0.5691286]
[1739451262937,0.22115626,95989.0,95988.0,0.5701286]
[1739451263330,0.22015626,95989.0,95988.0,0.5701286]
[1739451271935,0.00015626,95989.0,95988.0,0.5701286]
[1739451273840,0.3608,96014.0,96011.0,0.2082787]
[1739451274040,0.4182765,96012.0,96011.0,0.2082787]
[1739451275041,0.4182765,96012.0,96011.0,0.2092787]
[1739451275245,0.4222765,96012.0,96011.0,0.2092787]
[1739451275547,0.4282765,96012.0,96011.0,0.2102787]
[1739451277644,0.22,96012.0,96011.0,0.2102787]
[1739451281443,0.4282765,96012.0,96011.0,0.2102787]
[1739451282948,0.4282765,96012.0,96011.0,0.002]
[1739451287957,0.47892874,96012.0,96011.0,0.002]
[1739451290055,0.83972874,96012.0,96011.0,0.002]
[1739451295956,0.47892874,96012.0,96011.0,0.002]
[1739451296260,0.83972874,96012.0,96011.0,0.002]
[1739451296657,0.47892874,96012.0,96011.0,0.2102787]
[1739451308070,0.47892874,96012.0,96011.0,0.22070844]
[1739451308367,0.27065224,96012.0,96011.0,0.22070844]
[1739451310862,0.47892874,96012.0,96011.0,0.2102787]
[1739451311065,0.47892874,96012.0,96011.0,0.002]
[1739451312172,0.4282765,96012.0,96011.0,0.002]
[1739451312669,0.7890765,96012.0,96011.0,0.002]
[1739451319079,0.9374765,96012.0,96011.0,0.002]
[1739451320780,0.9374765,96012.0,96002.0,0.00015626]
[1739451320781,0.208296,96003.0,96002.0,0.00015626]
[1739451320977,0.6008,96003.0,95994.0,0.0726]
[1739451321181,0.3608,95995.0,95991.0,0.00156265]
[1739451321373,0.208333,95986.0,95985.0,0.18702216]
[1739451321683,0.769133,95986.0,95985.0,0.18702216]
[1739451322575,0.769133,95986.0,95985.0,0.18802216]
[1739451322881,0.769133,95986.0,95985.0,0.18902216]
[1739451324471,0.769133,95986.0,95985.0,0.18802216]
[1739451324682,0.92518123,95986.0,95985.0,0.002]
[1739451328583,0.81980196,95986.0,95985.0,0.002]
[1739451333191,0.769133,95986.0,95985.0,0.002]
[1739451334688,0.5608,95986.0,95985.0,0.002]
[1739451334889,0.63116,95986.0,95985.0,0.002]
[1739451335694,0.839493,95986.0,95985.0,0.002]
[1739451335894,0.769133,95986.0,95985.0,0.002]
[1739451336096,0.6114226,95986.0,95985.0,0.002]
[1739451337194,0.769133,95986.0,95985.0,0.002]
[1739451337397,0.21616251,95986.0,95985.0,0.002]
[1739451339900,0.57696251,95986.0,95985.0,0.002]
[1739451340795,0.627631,95986.0,95985.0,0.002]
[1739451349305,0.627631,95986.0,95985.0,0.001]
[1739451349989,0.2083525,95977.0,95976.0,0.20850906]
[1739451350194,0.4283525,95977.0,95976.0,0.20850906]
[1739451351301,0.4283525,95977.0,95976.0,0.21150906]
[1739451351497,0.4283525,95977.0,95976.0,0.21450906]
[1739451352905,0.43881722,95977.0,95976.0,0.21450906]
[1739451354105,0.4283525,95977.0,95976.0,0.21450906]
[1739451354408,0.27066849,95977.0,95976.0,0.21450906]
[1739451354801,0.18725788,95982.0,95976.0,0.21450906]
[1739451355003,0.04877794,95982.0,95981.0,0.5691438]
[1739451355197,0.08213907,95990.0,95981.0,0.3608]
[1739451355406,0.19,95990.0,95989.0,0.5691264]
[1739451355606,0.00068713,95990.0,95989.0,0.5691264]
[1739451356000,0.00068713,95990.0,95989.0,0.57961323]
[1739451356400,0.00068713,95990.0,95989.0,0.5691264]
[1739451357106,0.00168713,95990.0,95989.0,0.5691264]
[1739451358002,0.15789414,95990.0,95989.0,0.5691264]
[1739451359009,0.15989414,95990.0,95989.0,0.5691264]
[1739451361316,0.00368713,95990.0,95989.0,0.5691264]
[1739451368424,0.29,96005.0,95990.0,0.0520808]
[1739451368624,0.2082966,96003.0,96002.0,0.2082939]
[1739451368817,0.3608,96006.0,96005.0,0.2082917]
[1739451369017,0.5608,96006.0,96005.0,0.2082917]
[1739451370015,0.2,96006.0,96005.0,0.2082917]
[1739451370514,0.205,96006.0,96005.0,0.2092917]
[1739451371022,0.21,96006.0,96005.0,0.2102917]
[1739451371522,0.21,96006.0,96005.0,0.2092917]
[1739451372324,0.206,96006.0,96005.0,0.2092917]
[1739451379625,0.2083091,95997.0,95982.0,0.36144]
[1739451379827,0.2083395,95983.0,95982.0,0.3608]
[1739451380033,0.2083395,95983.0,95968.0,0.3608]
[1739451380034,0.21,95983.0,95968.0,0.37158163]
[1739451380329,0.08213907,95980.0,95970.0,0.08213907]
[1739451380536,0.31213907,95980.0,95972.0,0.2083623]
[1739451381034,0.2083597,95975.0,95974.0,0.2083553]
[1739451381236,0.4483597,95975.0,95974.0,0.2083553]
[1739451382442,0.4483597,95975.0,95974.0,0.2123553]
[1739451383434,0.4483597,95975.0,95974.0,0.2163553]
[1739451383735,0.4483597,95975.0,95974.0,0.008]
[1739451386345,0.2083612,95973.0,95972.0,0.2491095]
[1739451386637,0.4083612,95973.0,95972.0,0.2491095]
[1739451387522,0.4083612,95973.0,95972.0,0.2531095]
[1739451387726,0.4083612,95973.0,95972.0,0.2581095]
[1739451388635,0.4083612,95973.0,95972.0,0.2551095]
[1739451389523,0.4083612,95973.0,95972.0,0.2521095]
[1739451390931,0.2,95973.0,95972.0,0.003]
[1739451391130,0.27024,95973.0,95972.0,0.003]
[1739451391732,0.27024,95973.0,95972.0,0.2113633]
[1739451391934,0.2,95973.0,95972.0,0.2113633]
[1739451394736,0.01675601,95973.0,95972.0,0.2113633]
[1739451395835,0.22511721,95973.0,95972.0,0.2113633]
[1739451398742,0.22511721,95973.0,95972.0,0.003]
[1739451405438,0.22511721,95973.0,95972.0,0.2113633]
[1739451406233,0.22511721,95973.0,95972.0,0.003]
[1739451406433,0.01675601,95973.0,95966.0,0.00015626]
[1739451406639,0.2083742,95967.0,95966.0,0.00015626]
[1739451406841,0.4383742,95967.0,95966.0,0.00015626]
[1739451408845,0.4413742,95967.0,95966.0,0.00015626]
[1739451409444,0.4433742,95967.0,95966.0,0.00015626]
[1739451416046,0.49405091,95967.0,95966.0,0.00015626]
[1739451421251,0.49405091,95967.0,95961.0,0.00156314]
[1739451421252,0.2083851,95962.0,95961.0,0.00156314]
[1739451421442,0.2084242,95944.0,95943.0,0.18689715]
[1739451421646,0.4184242,95944.0,95943.0,0.18689715]
[1739451422454,0.42904997,95944.0,95943.0,0.18689715]
[1739451423048,0.42904997,95944.0,95943.0,0.19189715]
[1739451423644,0.42904997,95944.0,95943.0,0.005]
[1739451424351,0.42904997,95944.0,95943.0,0.2134263]
[1739451424745,0.42904997,95944.0,95943.0,0.2094263]
[1739451426248,0.42904997,95944.0,95943.0,0.001]
[1739451428257,0.42904997,95944.0,95934.0,0.00015634]
[1739451428258,0.2084437,95935.0,95934.0,0.00015634]
[1739451428549,0.2084437,95935.0,95920.0,0.00156358]
[1739451428550,0.2084741,95921.0,95920.0,0.00156358]
[1739451428748,0.4184741,95921.0,95920.0,0.00156358]
[1739451429755,0.4184741,95921.0,95920.0,0.21503988]
[1739451430056,0.4184741,95921.0,95920.0,0.00656358]
[1739451431657,0.4194741,95921.0,95920.0,0.01256358]
[1739451432150,0.43009075,95921.0,95920.0,0.01256358]
[1739451432355,0.42909075,95921.0,95920.0,0.00656358]
[1739451432550,0.43009075,95921.0,95920.0,0.01256358]
[1739451433147,0.22161665,95921.0,95911.0,0.00015634]
[1739451433347,0.2084921,95913.0,95911.0,0.00015634]
[1739451433548,0.4084921,95913.0,95911.0,0.00015634]
[1739451435153,0.4084921,95913.0,95911.0,0.00215634]
[1739451435351,0.2,95913.0,95911.0,0.00215634]
[1739451435554,0.4084921,95913.0,95911.0,0.00215634]
[1739451436057,0.4084921,95913.0,95911.0,0.00315634]
[1739451436262,0.4084921,95913.0,95900.0,0.1]
[1739451436263,0.2085176,95901.0,95900.0,0.1]
[1739451436562,0.4085176,95901.0,95900.0,0.1]
[1739451437350,0.2,95901.0,95894.0,0.18689715]
[1739451437552,0.5693306,95895.0,95894.0,0.02408688]
[1739451437857,0.8093306,95895.0,95894.0,0.02408688]
[1739451438155,0.8093306,95895.0,95888.0,0.00156429]
[1739451438156,0.6008,95895.0,95888.0,0.00156429]
[1739451438361,0.3608,95890.0,95870.0,0.2491095]
[1739451438653,0.2085654,95879.0,95870.0,0.2491095]
[1739451438962,0.4185654,95879.0,95870.0,0.2491095]
[1739451439153,0.21,95879.0,95870.0,0.2491095]
[1739451439351,0.2085819,95872.0,95870.0,0.2491095]
[1739451439550,0.4385819,95872.0,95870.0,0.2491095]
[1739451440960,0.4425819,95872.0,95870.0,0.2491095]
[1739451441665,0.534,95872.0,95855.0,0.37366426]
[1739451441963,0.5694155,95856.0,95855.0,0.37316205]
[1739451442156,0.7794155,95856.0,95855.0,0.37316205]
[1739451443157,0.58152276,95856.0,95850.0,0.00156476]
[1739451443363,0.2086263,95851.0,95850.0,0.00156476]
[1739451443568,0.3986263,95851.0,95850.0,0.00156476]
[1739451444355,0.19,95851.0,95828.0,0.3608]
[1739451444558,0.2086459,95842.0,95828.0,0.3608]
[1739451444863,0.2086503,95840.0,95828.0,0.3608]
[1739451445049,0.4386503,95840.0,95829.0,0.0688]
[1739451445358,0.2086742,95829.0,95828.0,0.3608]
[1739451445662,0.3986742,95829.0,95828.0,0.3608]
[1739451446265,0.40919184,95829.0,95828.0,0.3608]
[1739451446968,0.20051764,95829.0,95828.0,0.3608]
[1739451447560,0.01051764,95829.0,95828.0,0.3608]
[1739451447863,0.00015651,95838.0,95830.0,0.208671]
[1739451448160,0.41881111,95838.0,95837.0,0.3608]
[1739451448365,0.21015651,95838.0,95837.0,0.3608]
[1739451448764,0.22060717,95838.0,95837.0,0.3608]
[1739451450064,0.22060717,95838.0,95837.0,0.4301]
[1739451450566,0.01060717,95838.0,95837.0,0.4301]
[1739451450966,0.2086447,95843.0,95842.0,0.2086459]
[1739451451768,0.4186447,95843.0,95842.0,0.2086459]
[1739451452163,0.23272083,95843.0,95842.0,0.2086459]
[1739451452363,0.2086524,95839.0,95838.0,0.0721]
[1739451452564,0.4186524,95839.0,95837.0,0.34617796]
[1739451452762,0.4186524,95839.0,95837.0,0.55427456]
[1739451452967,0.4186524,95839.0,95837.0,0.34561796]
[1739451453463,0.4186524,95839.0,95837.0,0.55427426]
[1739451453666,0.42913674,95839.0,95837.0,0.55427426]
[1739451454561,0.42913674,95839.0,95838.0,0.2086546]
[1739451455265,0.01048434,95839.0,95838.0,0.2086546]
[1739451455463,0.2086418,95844.0,95837.0,0.34561796]
[1739451455664,0.4386418,95844.0,95843.0,0.2086437]
[1739451456967,0.24051783,95844.0,95843.0,0.2086437]
[1739451457662,0.24251783,95844.0,95843.0,0.2086437]
[1739451458264,0.24351783,95844.0,95843.0,0.2086437]
[1739451458767,0.45215933,95844.0,95843.0,0.2086437]
[1739451459269,0.45215933,95844.0,95838.0,0.0703]
[1739451459270,0.2086524,95839.0,95838.0,0.0703]
[1739451459570,0.4386524,95839.0,95838.0,0.4311]
[1739451460064,0.4386524,95839.0,95838.0,0.3608]
[1739451460366,0.4386524,95839.0,95829.0,0.3608]
[1739451460367,0.2086632,95834.0,95831.0,0.2086694]
[1739451460564,0.4186632,95834.0,95829.0,0.3608]
[1739451460967,0.4186632,95834.0,95831.0,0.2086698]
[1739451461155,0.4186632,95834.0,95832.0,0.3608]
[1739451461555,0.4186632,95834.0,95833.0,0.20882201]
[1739451462162,0.21,95834.0,95833.0,0.20882201]
[1739451464468,0.4186633,95834.0,95833.0,0.20882201]
[1739451466463,0.21,95834.0,95833.0,0.20882201]
[1739451466661,0.02091878,95834.0,95833.0,0.20882201]
[1739451467767,0.02091878,95834.0,95833.0,0.56962201]
[1739451467963,0.1663521,95844.0,95843.0,0.2086437]
[1739451468166,0.1663521,95844.0,95843.0,0.5694437]
[1739451468167,0.40644085,95844.0,95843.0,0.5694437]
[1739451469383,0.40844085,95844.0,95843.0,0.5694437]
[1739451470471,0.40944085,95844.0,95843.0,0.5694437]
[1739451471964,0.11583077,95844.0,95843.0,0.5694437]
[1739451472165,0.25433877,95844.0,95843.0,0.5694437]
[1739451472363,0.06433877,95844.0,95843.0,0.5694437]
[1739451472578,0.26433877,95844.0,95843.0,0.5694437]
[1739451473272,0.47298027,95844.0,95843.0,0.5694437]
[1739451473672,0.26433877,95844.0,95843.0,0.5694437]
[1739451475073,0.26233877,95844.0,95843.0,0.5694437]
[1739451475576,0.40360549,95844.0,95843.0,0.5694437]
[1739451475971,0.40560549,95844.0,95843.0,0.5694437]
[1739451476571,0.40460549,95844.0,95843.0,0.5694437]
[1739451476773,0.40460549,95844.0,95843.0,0.35024513]
[1739451477682,0.26333877,95844.0,95843.0,0.55888883]
[1739451477881,0.47198027,95844.0,95843.0,0.3608]
[1739451478175,0.47298027,95844.0,95843.0,0.3608]
[1739451479786,0.47198027,95844.0,95843.0,0.3608]
[1739451480670,0.47298027,95844.0,95843.0,0.3608]
[1739451481477,0.208663,95835.0,95834.0,0.3608]
[1739451481677,0.408663,95835.0,95834.0,0.3608]
[1739451484078,0.408663,95835.0,95834.0,0.5694633]
[1739451488185,0.408663,95835.0,95834.0,0.3608]
[1739451489584,0.408663,95835.0,95834.0,0.5694633]
[1739451489884,0.408663,95835.0,95834.0,0.3608]
[1739451490793,0.408663,95835.0,95834.0,0.5694633]
[1739451494191,0.16698876,95844.0,95843.0,0.2086437]
[1739451494386,0.15638218,95844.0,95843.0,0.5694437]
[1739451494683,0.0699,95857.0,95843.0,0.5694437]
[1739451494684,0.18760826,95854.0,95851.0,0.2086263]
[1739451494879,0.19015651,95852.0,95851.0,0.5694263]
[1739451495077,0.21079498,95852.0,95851.0,0.5694263]
[1739451496182,0.21579498,95852.0,95851.0,0.5694263]
[1739451496577,0.01579498,95852.0,95851.0,0.5694263]
[1739451496979,0.01979498,95852.0,95851.0,0.5694263]
[1739451498784,0.23979498,95852.0,95851.0,0.5694263]
[1739451498989,0.01979498,95852.0,95851.0,0.5694263]
[1739451500185,0.18760826,95862.0,95851.0,0.3608]
[1739451500385,0.4386024,95862.0,95861.0,0.5694045]
[1739451501381,0.28429865,95862.0,95861.0,0.5694045]
[1739451501681,0.0929493,95862.0,95861.0,0.5694045]
[1739451502096,0.0879493,95862.0,95861.0,0.5694045]
[1739451502294,0.0949493,95862.0,95861.0,0.5694045]
[1739451506599,0.14568427,95862.0,95861.0,0.5694045]
[1739451509796,0.35428657,95862.0,95861.0,0.5694045]
[1739451510302,0.34928657,95862.0,95861.0,0.5694045]
[1739451510600,0.34228657,95862.0,95861.0,0.5694045]
[1739451511296,0.34428657,95862.0,95861.0,0.5694045]
[1739451511495,0.34728657,95862.0,95861.0,0.5694045]
[1739451511896,0.34728657,95862.0,95861.0,0.2086045]
[1739451512091,0.2086154,95856.0,95855.0,0.208617]
[1739451512293,0.4286154,95856.0,95855.0,0.208617]
[1739451512996,0.4286154,95856.0,95850.0,0.3608]
[1739451513196,0.0737,95855.0,95854.0,0.2086198]
[1739451513395,0.1637,95855.0,95854.0,0.2086198]
[1739451514196,0.3723176,95855.0,95854.0,0.2086198]
[1739451514395,0.3753176,95855.0,95854.0,0.2086198]
[1739451515102,0.3793176,95855.0,95854.0,0.2086198]
[1739451516202,0.3763176,95855.0,95854.0,0.2086198]
[1739451516399,0.3793176,95855.0,95854.0,0.2086198]
[1739451516894,0.3783176,95855.0,95854.0,0.2086198]
[1739451517297,0.1697,95855.0,95854.0,0.2086198]
[1739451517505,0.094,95855.0,95854.0,0.2086198]
[1739451517708,0.091,95855.0,95854.0,0.2086198]
[1739451517901,0.094,95855.0,95854.0,0.2086198]
[1739451518498,0.01025305,95862.0,95851.0,0.3608]
[1739451518698,0.00015651,95871.0,95868.0,0.2085893]
[1739451518900,0.36670482,95869.0,95868.0,0.2085893]
[1739451519409,0.23050482,95869.0,95868.0,0.2085893]
[1739451520510,0.23550482,95869.0,95868.0,0.2095893]
[1739451520809,0.24250482,95869.0,95868.0,0.2105893]
[1739451521703,0.29323882,95869.0,95868.0,0.2105893]
[1739451523806,0.50182592,95869.0,95868.0,0.2105893]
[1739451524808,0.30892275,95869.0,95868.0,0.2105893]
[1739451526503,0.13406787,95869.0,95868.0,0.2095893]
[1739451526705,0.34706787,95869.0,95868.0,0.2095893]
[1739451527312,0.35006787,95869.0,95868.0,0.2085893]
[1739451527606,0.216,95869.0,95868.0,0.5693893]
[1739451527813,0.22624158,95869.0,95868.0,0.5693893]
[1739451528305,0.22324158,95869.0,95868.0,0.5693893]
[1739451528505,0.22624158,95869.0,95868.0,0.5693893]
[1739451529604,0.22324158,95869.0,95868.0,0.5693893]
[1739451529802,0.22524158,95869.0,95868.0,0.5693893]
[1739451530712,0.22224158,95869.0,95868.0,0.5693893]
[1739451530903,0.22424158,95869.0,95868.0,0.5693893]
[1739451533516,0.22424158,95869.0,95868.0,0.58008616]
[1739451534407,0.22424158,95869.0,95868.0,0.5693893]
[1739451540718,0.34798297,95869.0,95868.0,0.5693893]
[1739451540919,0.16992977,95869.0,95868.0,0.5693893]
[1739451541226,0.13798297,95869.0,95868.0,0.5693893]
[1739451544223,0.01424158,95869.0,95868.0,0.5693893]
[1739451552133,0.22424158,95869.0,95868.0,0.5693893]
[1739451556828,0.214,95869.0,95868.0,0.5693893]
[1739451561241,0.002,95869.0,95868.0,0.5693893]
[1739451561436,0.002,95869.0,95868.0,0.5703893]
[1739451561936,0.00283,95877.0,95876.0,0.2085719]
[1739451562135,0.21283,95877.0,95876.0,0.5693719]
[1739451563438,0.21383,95877.0,95876.0,0.5693719]
[1739451563637,0.00383,95877.0,95876.0,0.57972636]
[1739451563946,0.00583,95877.0,95876.0,0.57972636]
[1739451564438,0.00483,95877.0,95876.0,0.58172636]
[1739451564638,0.00283,95877.0,95876.0,0.58172636]
[1739451564829,0.0674,95881.0,95880.0,0.2085632]
[1739451565030,0.00015651,95886.0,95885.0,0.2085523]
[1739451566429,0.00115651,95886.0,95885.0,0.2085523]
[1739451567039,0.00015651,95886.0,95885.0,0.2095523]
[1739451567232,0.00015651,95886.0,95885.0,0.2105523]
[1739451568039,0.00015651,95886.0,95885.0,0.2125523]
[1739451568936,0.00015651,95886.0,95885.0,0.2145523]
[1739451569440,0.00015651,95886.0,95885.0,0.2095523]
[1739451569741,0.00015651,95886.0,95885.0,0.2105523]
[1739451570536,0.20510286,95898.0,95897.0,0.2085262]
[1739451570735,0.43510286,95898.0,95897.0,0.5693262]
[1739451570937,0.23,95898.0,95897.0,0.5693262]
[1739451572647,0.231,95898.0,95897.0,0.5693262]
[1739451573054,0.00015642,95907.0,95906.0,0.2085067]
[1739451573250,0.07015642,95907.0,95906.0,0.5693067]
[1739451574550,0.07015642,95907.0,95906.0,0.5723067]
[1739451574847,0.00015642,95907.0,95906.0,0.5723067]
[1739451575349,0.00015642,95907.0,95906.0,0.5753067]
[1739451575750,0.20015642,95907.0,95906.0,0.5753067]
[1739451576141,0.20015642,95907.0,95906.0,0.5763067]
[1739451577054,0.20015642,95907.0,95906.0,0.5733067]
[1739451577247,0.20015642,95907.0,95906.0,0.5763067]
[1739451577852,0.20015642,95907.0,95906.0,0.5753067]
[1739451578154,0.02854342,95907.0,95906.0,0.5753067]
[1739451578641,0.02854342,95907.0,95906.0,0.5723067]
[1739451578847,0.02854342,95907.0,95906.0,0.5753067]
[1739451579239,0.02854342,95907.0,95906.0,0.5723067]
[1739451579444,0.02854342,95907.0,95906.0,0.5743067]
[1739451579841,0.02854342,95907.0,95906.0,0.5723067]
[1739451580051,0.02854342,95907.0,95906.0,0.5703067]
[1739451580955,0.2,95907.0,95906.0,0.3618]
[1739451581146,0.2,95907.0,95906.0,0.5703067]
[1739451581342,0.2,95907.0,95906.0,0.5693067]
[1739451581549,0.202,95907.0,95906.0,0.5693067]
[1739451581757,0.203,95907.0,95906.0,0.5693067]
[1739451582157,0.202,95907.0,95906.0,0.5693067]
[1739451582353,0.204,95907.0,95906.0,0.5693067]
[1739451582753,0.202,95907.0,95906.0,0.5693067]
[1739451582953,0.205,95907.0,95906.0,0.5693067]
[1739451584154,0.202,95907.0,95897.0,0.3608]
[1739451584354,0.202,95907.0,95877.0,0.18721089]
[1739451584355,0.2085327,95894.0,95893.0,0.3608]
[1739451584556,0.2085436,95889.0,95877.0,0.18721089]
[1739451584751,0.0521377,95886.0,95871.0,0.24974621]
[1739451584951,0.2085778,95874.0,95872.0,0.2085803]
[1739451585147,0.4185778,95874.0,95872.0,0.2085803]
[1739451585352,0.0735,95873.0,95872.0,0.2085803]
[1739451585558,0.3135,95873.0,95872.0,0.2085803]
[1739451586154,0.3135,95873.0,95871.0,0.24974621]
[1739451586457,0.2085806,95872.0,95871.0,0.24974621]
[1739451586644,0.4385806,95872.0,95871.0,0.24974621]
[1739451587854,0.5058806,95872.0,95871.0,0.24974621]
[1739451588055,0.5058806,95872.0,95871.0,0.001]
[1739451588249,0.5058806,95872.0,95871.0,0.002]
[1739451588655,0.51884323,95872.0,95871.0,0.002]
[1739451588847,0.51884323,95872.0,95871.0,0.2105828]
[1739451589855,0.31026263,95872.0,95871.0,0.2105828]
[1739451592456,0.24296263,95872.0,95871.0,0.2105828]
[1739451598864,0.23,95872.0,95871.0,0.2105828]
[1739451608183,0.23,95872.0,95871.0,0.5713828]
[1739451610780,0.01,95887.0,95881.0,0.2085611]
[1739451610984,0.21015642,95882.0,95881.0,0.5693611]
[1739451611882,0.43195023,95882.0,95881.0,0.5693611]
[1739451612086,0.43495023,95882.0,95881.0,0.3608]
[1739451612287,0.43695023,95882.0,95881.0,0.3608]
[1739451613391,0.208572,95876.0,95875.0,0.2085734]
[1739451613588,0.408572,95876.0,95875.0,0.2085734]
[1739451615093,0.409572,95876.0,95875.0,0.2085734]
[1739451616689,0.201,95876.0,95875.0,0.2085734]
[1739451617494,0.43933054,95876.0,95875.0,0.2085734]
[1739451617688,0.64790254,95876.0,95875.0,0.2085734]
[1739451619192,0.2085981,95864.0,95862.0,0.0711]
[1739451619398,0.4085981,95864.0,95863.0,0.20875662]
[1739451619792,0.2,95864.0,95863.0,0.20875662]
[1739451621099,0.4809981,95864.0,95863.0,0.21275662]
[1739451621301,0.4809981,95864.0,95863.0,0.21575662]
[1739451624100,0.2724,95864.0,95863.0,0.21575662]
[1739451624599,0.2,95864.0,95863.0,0.21575662]
[1739451629793,0.4085981,95864.0,95863.0,0.21575662]
[1739451630203,0.4085981,95864.0,95863.0,0.00715642]
[1739451632398,0.4085981,95864.0,95863.0,0.00315642]
[1739451633104,0.2326874,95864.0,95863.0,0.00315642]
[1739451633908,0.2326874,95864.0,95843.0,0.00156497]
[1739451633909,0.2086416,95844.0,95843.0,0.00156497]
[1739451634198,0.3986416,95844.0,95843.0,0.00156497]
[1739451634790,0.41164096,95844.0,95843.0,0.00156497]
[1739451635299,0.20299936,95844.0,95843.0,0.00356497]
[1739451635495,0.41164096,95844.0,95843.0,0.002]
[1739451635696,0.41164096,95844.0,95843.0,0.004]
[1739451639001,0.20299936,95844.0,95843.0,0.2126437]
[1739451639398,0.20299936,95844.0,95843.0,0.004]
[1739451639599,0.41164096,95844.0,95843.0,0.2126437]
[1739451641399,0.19,95844.0,95843.0,0.2126437]
[1739451641808,0.01339087,95850.0,95849.0,0.2086307]
[1739451642111,0.0947,95850.0,95849.0,0.5694307]
[1739451644209,0.0947,95850.0,95849.0,0.5704307]
[1739451645509,0.0947,95850.0,95849.0,0.5695507]
[1739451646411,0.15607354,95853.0,95852.0,0.2086242]
[1739451646412,0.07666166,95853.0,95852.0,0.2086242]
[1739451646708,0.30666166,95853.0,95849.0,0.3618]
[1739451647502,0.23,95853.0,95849.0,0.3608]
[1739451647708,0.231,95853.0,95849.0,0.3608]
[1739451648108,0.231,95853.0,95850.0,0.208627]
[1739451648504,0.231,95853.0,95851.0,0.2086247]
[1739451649413,0.23,95853.0,95851.0,0.2086247]
[1739451650411,0.231,95853.0,95851.0,0.2086247]
[1739451650614,0.231,95853.0,95851.0,0.22122166]
[1739451651213,0.231,95853.0,95851.0,0.2086247]
[1739451652216,0.04270604,95853.0,95851.0,0.2086247]
[1739451652409,0.001,95853.0,95851.0,0.2086247]
[1739451652601,0.2086283,95851.0,95849.0,0.3608]
[1739451652809,0.3986283,95851.0,95849.0,0.3608]
[1739451653608,0.41150949,95851.0,95849.0,0.3608]
[1739451653812,0.41150949,95851.0,95849.0,0.3618]
[1739451656516,0.41150949,95851.0,95849.0,0.001]
[1739451657414,0.2086285,95850.0,95849.0,0.001]
[1739451657612,0.4186285,95850.0,95849.0,0.001]
[1739451659522,0.2086459,95842.0,95841.0,0.3608]
[1739451659818,0.4086459,95842.0,95841.0,0.3608]
[1739451660719,0.4086459,95842.0,95841.0,0.3638]
[1739451661220,0.4086459,95842.0,95841.0,0.3668]
[1739451663919,0.4086459,95842.0,95825.0,0.1496]
[1739451663920,0.5608,95842.0,95825.0,0.0732]
[1739451664113,0.3608,95826.0,95824.0,0.2086831]
[1739451664316,0.2086895,95822.0,95821.0,0.00156522]
[1739451664509,0.4086895,95822.0,95821.0,0.21025692]
[1739451665615,0.4086895,95822.0,95821.0,0.2086917]
[1739451666017,0.42110539,95822.0,95821.0,0.2086917]
[1739451666219,0.42110539,95822.0,95821.0,0.2126917]
[1739451666417,0.42110539,95822.0,95821.0,0.2166917]
[1739451667424,0.42110539,95822.0,95821.0,0.008]
[1739451667627,0.208709,95813.0,95812.0,0.00015651]
[1739451667927,0.779509,95813.0,95812.0,0.20886771]
[1739451668416,0.779509,95813.0,95812.0,0.00015651]
[1739451668917,0.780509,95813.0,95812.0,0.01115651]
[1739451670020,0.779509,95813.0,95812.0,0.00615651]
[1739451681340,0.208733,95802.0,95801.0,0.00156545]
[1739451681635,0.779533,95802.0,95801.0,0.00156545]
[1739451682541,0.779533,95802.0,95801.0,0.00656545]
[1739451682542,0.780533,95802.0,95801.0,0.00656545]
[1739451682934,0.780533,95802.0,95801.0,0.01156545]
[1739451683940,0.5718,95802.0,95801.0,0.22030065]
[1739451687441,0.780533,95802.0,95801.0,0.22030065]
[1739451688147,0.5718,95802.0,95801.0,0.22030065]
[1739451692049,0.211,95802.0,95801.0,0.22030065]
[1739451692436,0.001,95802.0,95801.0,0.22030065]
[1739451693143,0.00015651,95811.0,95810.0,0.2087156]
[1739451694543,0.00015651,95811.0,95810.0,0.2117156]
[1739451695645,0.00015651,95811.0,95810.0,0.5755156]
[1739451696347,1e-08,95811.0,95810.0,0.5755156]
[1739451696744,1e-08,95811.0,95810.0,0.7946156]
[1739451696955,0.18761,95826.0,95825.0,0.2086829]
[1739451697349,0.18761,95826.0,95819.0,0.3608]
[1739451697350,0.3608,95844.0,95840.0,0.2086503]
[1739451697653,0.38997398,95841.0,95840.0,0.2086503]
[1739451698049,0.38997398,95841.0,95832.0,0.0737]
[1739451698353,0.3608,95833.0,95831.0,0.00015651]
[1739451698555,0.5708,95833.0,95831.0,0.00015651]
[1739451699252,0.7794668,95833.0,95831.0,0.00015651]
[1739451699752,0.0764,95832.0,95831.0,0.00015651]
[1739451700049,0.21,95832.0,95831.0,0.00015651]
[1739451700258,0.004,95833.0,95831.0,0.00015651]
[1739451700752,0.009,95833.0,95831.0,0.00015651]
[1739451701253,0.009,95833.0,95832.0,0.2086677]
[1739451701451,0.19997398,95841.0,95832.0,0.2086677]
[1739451701756,0.19997398,95841.0,95840.0,0.2086503]
[1739451701944,0.42745792,95841.0,95840.0,0.2086503]
[1739451702143,0.40745792,95841.0,95840.0,0.2086503]
[1739451702342,0.22,95841.0,95840.0,0.2086503]
[1739451702851,0.221,95841.0,95840.0,0.2086503]
[1739451703051,0.001,95841.0,95840.0,0.2086503]
[1739451703255,0.01267829,95842.0,95840.0,0.2086503]
[1739451703450,0.003,95841.0,95840.0,0.2086503]
[1739451704045,0.007,95841.0,95840.0,0.2086503]